fUST/lending_fUST_20251015
["ID","MTS","AMOUNT","RATE_DAILY","PERIOD"]
[391285277,1760469038329,-250.0,0.0002905,2]
[391285278,1760469038338,-250.0,0.0002905,2]
[391285279,1760469038348,-250.0,0.0002905,2]
[391285280,1760469038358,-250.0,0.0002905,2]
[391285281,1760469038368,-250.0,0.0002905,2]
[391285282,1760469038377,-250.0,0.0002905,2]
[391285283,1760469038387,-250.0,0.0002905,2]
[391285284,1760469038397,-250.0,0.0002905,2]
[391285285,1760469038406,-250.0,0.0002905,2]
[391285286,1760469038416,-250.0,0.0002905,2]
[391285287,1760469038425,-175.613,0.00029067,21]
[391285288,1760469038435,-2062.97268656,0.00029067,2]
[391285289,1760469038444,-2062.97268656,0.00029167,2]
[391285290,1760469038454,-607.0,0.0002917,2]
[391285291,1760469038465,-1014.39,0.00029174,2]
[391285292,1760469038475,-912.58,0.00029198,2]
[391285293,1760469038485,-912.58,0.00029198,2]
[391285294,1760469038495,-912.58,0.00029198,2]
[391285295,1760469038504,-912.58,0.00029198,2]
[391285296,1760469038514,-912.58,0.00029198,2]
[391285297,1760469038523,-912.58,0.00029198,2]
[391285298,1760469038532,-912.58,0.00029198,2]
[391285299,1760469038542,-912.58,0.00029198,2]
[391285300,1760469038551,-912.58,0.00029198,2]
[391285301,1760469038560,-912.58,0.00029198,2]
[391285302,1760469038569,-912.58,0.00029198,2]
[391285303,1760469038579,-912.58,0.00029198,2]
[391285304,1760469038588,-912.58,0.00029198,2]
[391285305,1760469038598,-912.58,0.00029198,2]
[391285306,1760469038608,-595.1948961,0.0002921,30]
[391285307,1760469038617,-1177.6291172,0.0002921,30]
[391285308,1760469038626,-221.221983,0.00029212,30]
[391285309,1760469038636,-218.552066,0.00029212,30]
[391285310,1760469038645,-600.0,0.00029217,2]
[391285311,1760469038655,-2062.97268656,0.00029267,2]
[391285312,1760469038665,-900.0,0.00029322,7]
[391285313,1760469038674,-221.221983,0.0002934,5]
[391285314,1760469038684,-218.552066,0.0002934,5]
[391285315,1760469038693,-151.93341385,0.00029342,30]
[391285316,1760469038703,-1014.39,0.00029348,2]
[391285317,1760469038714,-2062.97268656,0.00029367,2]
[391285318,1760469038725,-607.0,0.00029422,2]
[391285319,1760469038735,-5888.0,0.00029441,7]
[391285320,1760469038744,-221.221983,0.00029444,2]
[391285321,1760469038754,-218.552066,0.00029444,2]
[391285322,1760469038764,-1060.5796671,0.00029456,2]
[391285323,1760469038774,-2062.97268656,0.00029467,2]
[391285324,1760469038784,-600.0,0.00029521,2]
[391285325,1760469038793,-338.42535276,0.00029545,2]
[391285326,1760469038802,-5000.0,0.00029546,25]
[391285327,1760469038812,-5000.0,0.00029546,23]
[391285328,1760469038822,-5000.0,0.00029546,20]
[391285329,1760469038832,-2961.0,0.00029567,7]
[391285330,1760469038841,-2062.97268656,0.00029567,2]
[391285331,1760469038850,-500.0,0.00029589,30]
[391285332,1760469038859,-500.0,0.00029589,30]
[391285333,1760469038869,-500.0,0.00029589,30]
[391285334,1760469038879,-500.0,0.00029589,30]
[391285335,1760469038889,-500.0,0.00029589,30]
[391285336,1760469038899,-500.0,0.00029589,30]
[391285337,1760469038909,-500.0,0.00029589,30]
[391285338,1760469038919,-500.0,0.00029589,30]
[391285339,1760469038928,-500.0,0.00029589,30]
[391285340,1760469038938,-500.0,0.00029589,30]
[391285341,1760469038950,-500.0,0.00029589,30]
[391285342,1760469039133,-324.4654374,0.00029589,30]
[391285343,1760469039143,-1000.0,0.000296,2]
[391285344,1760469039153,-221.221983,0.00029624,30]
[391285345,1760469039163,-218.552066,0.00029624,30]
[391285346,1760469039173,-607.0,0.00029626,2]
[391285347,1760469039184,-500.0,0.0002963,20]
[391285348,1760469039194,-500.0,0.0002963,5]
[391285349,1760469039203,-500.0,0.0002963,20]
[391285350,1760469039213,-500.0,0.0002963,5]
[391285351,1760469039224,-500.0,0.0002963,20]
[391285352,1760469039234,-500.0,0.0002963,5]
[391285354,1760469039243,-500.0,0.0002963,5]
[391285355,1760469039253,-512.35255983,0.0002963,20]
[391285356,1760469039263,-607.0,0.00029661,2]
[391285357,1760469039272,-2062.97268656,0.00029667,2]
[391285358,1760469039282,-2062.97268656,0.00029767,2]
[391285359,1760469039291,-600.0,0.00029825,2]
[391285360,1760469039301,-494.23,0.00029846,10]
[391285361,1760469039310,-392.1734423,0.00029856,30]
[391285362,1760469039320,-392.1734423,0.00029856,30]
[391285363,1760469039329,-392.1734423,0.00029856,30]
[391285364,1760469039339,-392.1734423,0.00029856,30]
[391285365,1760469039348,-392.1734423,0.00029856,30]
[391285366,1760469039358,-392.1734423,0.00029856,30]
[391285367,1760469039367,-2062.97268656,0.00029867,2]
[391285368,1760469039377,-2961.0,0.00029884,2]
[391285369,1760469039387,-942.46,0.0002989,10]
[391285370,1760469039396,-221.221983,0.00029899,5]
[391285371,1760469039405,-218.552066,0.00029899,5]
[391285372,1760469039414,-1500.0,0.000299,3]
[391285373,1760469039424,-213.28674613,0.00029989,2]
[391285374,1760469039433,-760.30037828,0.0002999,2]
[391285375,1760469039442,-51659.8116595,0.0002999,2]
[391285376,1760469039451,-196.63462955,0.0002999,2]
[391285377,1760469039460,-298.0923344,0.00029993,30]
[391285378,1760469039470,-403.2567699,0.00029993,30]
[391285379,1760469039479,-298.0923344,0.00029993,30]
[391285380,1760469039488,-162.9892445,0.00029993,30]
[391285381,1760469039497,-298.0923344,0.00029993,30]
[391285382,1760469039507,-153.0,0.00029993,30]
[391285383,1760469039516,-588.8145586,0.00029993,30]
[391285384,1760469039525,-189.8496045,0.00029993,30]
[391285385,1760469039534,-588.8145586,0.00029993,30]
[391285386,1760469039544,-298.0923344,0.00029993,30]
[391285387,1760469039553,-153.0,0.00029993,30]
[391285388,1760469039564,-153.0,0.00029993,30]
[391285389,1760469039573,-297.4919995,0.00029993,30]
[391285390,1760469039583,-588.8145586,0.00029993,30]
[391285391,1760469039592,-379.699209,0.00029993,30]
[391285392,1760469039602,-189.8496045,0.00029993,30]
[391285394,1760469039611,-153.0,0.00029993,30]
[391285396,1760469039620,-21970.92634571,0.0003,5]
[391285397,1760469039630,-252.0,0.0003,60]
[391285398,1760469039639,-1103.0,0.0003,7]
[391285400,1760469039648,-154.98917,0.0003,120]
[391285401,1760469039658,-3226.14793903,0.00030015,2]
[391285402,1760469039667,-4999.0,0.00030026,2]
[391285403,1760469039676,-221.221983,0.00030036,30]
[391285404,1760469039686,-218.552066,0.00030036,30]
[391285405,1760469039695,-239.71167396,0.00030038,2]
[391285406,1760469039704,-5888.0,0.00030073,2]
[391285408,1760469039714,-204.0,0.0003009,25]
[391285409,1760469039724,-239.71167394,0.00030091,2]
[391285410,1760469039734,-11321.0692532,0.00030094,2]
[391285411,1760469039775,-40338.7424063,0.00030094,2]
[391285412,1760469039784,-196.63462955,0.00030094,2]
[391285413,1760469039794,-151.0,0.000301,17]
[391285414,1760469039803,-1000.0,0.000301,2]
[391285415,1760469039812,-11313.62296415,0.00030106,2]
[391285416,1760469039824,-4590.52831585,0.00030106,2]
[391285418,1760469039947,-912.58,0.00029198,2]
[391285419,1760469039957,-912.58,0.00029198,2]
[391285420,1760469039968,-912.58,0.00029198,2]
[391285421,1760469039978,-912.58,0.00029198,2]
[391285422,1760469039987,-912.58,0.00029198,2]
[391285423,1760469039997,-35755.6603795,0.00030106,2]
[391285424,1760469040007,-196.63462955,0.00030106,2]
[391285425,1760469040016,-150.109,0.00030114,2]
[391285426,1760469040027,-150.0,0.00030114,2]
[391285427,1760469040036,-150.0,0.00030114,2]
[391285428,1760469040047,-981.0,0.00030114,2]
[391285429,1760469040059,-2161.0,0.00030114,2]
[391285430,1760469040068,-631.0,0.00030114,2]
[391285431,1760469040077,-68241.69599094,0.00030117,2]
[391285459,1760469043039,-912.58,0.00029198,2]
[391285460,1760469043051,-912.58,0.00029198,2]
[391285461,1760469043066,-912.58,0.00029198,2]
[391285462,1760469043076,-912.58,0.00029198,2]
[391285463,1760469043086,-912.70038255,0.00029198,2]
[391285464,1760469043095,-86737.73898706,0.00030117,2]
[391285465,1760469043107,-1179.8077773,0.00030117,2]
[391285467,1760469043117,-374.7907051,0.00030126,2]
[391285469,1760469043127,-2714.3678341,0.00030126,2]
[391285471,1760469043138,-4369.0741112,0.00030126,2]
[391285473,1760469043147,-666.629355,0.00030126,2]
[391285475,1760469043157,-2855.0296718,0.00030126,2]
[391285476,1760469043167,-206.1808514,0.00030126,2]
[391285477,1760469043176,-163.110795,0.00030126,2]
[391285478,1760469043184,-2162.98092505,0.00030127,2]
[391285479,1760469043193,-600.0,0.0003013,2]
[391285480,1760469043202,-3226.14793901,0.00030132,2]
[391285481,1760469043211,-77013.90035037,0.00030137,2]
[391285490,1760469150139,500.0,0.00030437,60]
[391285491,1760469150382,500.0,0.00030437,60]
[391285492,1760469150613,500.0,0.00030437,60]
[391285493,1760469150860,500.0,0.00030437,60]
[391285494,1760469151121,500.0,0.00030437,60]
[391285495,1760469151369,500.0,0.00030437,60]
[391285496,1760469151671,500.0,0.00030437,60]
[391285497,1760469151930,500.0,0.00030437,60]
[391285508,1760469312386,896.02,0.00030451,60]
[391285509,1760469312646,896.02,0.00030451,60]
[391285510,1760469312872,896.02,0.00030451,60]
[391285511,1760469313103,896.02,0.00030451,60]
[391285512,1760469313361,896.02,0.00030451,60]
[391285513,1760469313590,896.02,0.00030451,60]
[391285514,1760469313872,896.02,0.00030451,60]
[391285515,1760469314112,896.02,0.00030451,60]
[391285516,1760469319284,896.02,0.00030451,60]
[391285517,1760469319520,896.02,0.00030451,60]
[391285518,1760469319780,896.02,0.00030451,60]
[391285519,1760469320225,896.02,0.00030451,60]
[391285520,1760469320477,896.02,0.00030451,60]
[391285521,1760469320703,896.02,0.00030451,60]
[391285522,1760469320937,896.02,0.00030451,60]
[391285523,1760469321182,896.02,0.00030451,60]
[391285524,1760469321402,896.02,0.00030451,60]
[391285525,1760469321633,896.02,0.00030451,60]
[391285526,1760469321878,896.02,0.00030451,60]
[391285527,1760469322238,896.02,0.00030451,60]
[391285528,1760469322369,896.02,0.00030451,60]
[391285529,1760469322601,896.02,0.00030451,60]
[391285530,1760469322849,896.02,0.00030451,60]
[391285531,1760469323087,896.25194362,0.00030451,60]
[391285532,1760469337591,500.0,0.00030451,60]
[391285533,1760469337772,500.0,0.00030451,60]
[391285534,1760469422087,500.0,0.00030451,60]
[391285535,1760469422377,500.0,0.00030451,60]
[391285536,1760469422676,500.0,0.00030451,60]
[391285537,1760469422937,500.0,0.00030451,60]
[391285538,1760469423179,500.0,0.00030451,60]
[391285539,1760469423432,500.0,0.00030451,60]
[391285559,1760469625802,565.734918,0.00013699,2]
[391285561,1760469744327,5000.0,0.00019,2]
[391286663,1760469958611,5000.0,0.00019,2]
[391286909,1760469981596,3404.23958708,0.00019,2]
[391286937,1760470010696,500.0,0.00030445,60]
[391286938,1760470010948,444.38322028,0.00030445,60]
[391287039,1760470101695,1006.90729153,0.00015,2]
[391287042,1760470107975,286.22912962,0.0001,2]
[391287043,1760470108791,164.12088673,0.000189,2]
[391287047,1760470118685,191.018145,0.0002,120]
[391287048,1760470119185,452.999999,0.00030445,120]
[391287054,1760470174913,2138.56197936,0.00018905,2]
[391287055,1760470205634,164.12088673,0.000189,2]
[391287095,1760470231975,-300.0,0.00019,2]
[391287096,1760470231984,-2664.80861173,0.00019,2]
[391287097,1760470231994,-150.0,0.00019,2]
[391287098,1760470232003,-500.01577318,0.00019,2]
[391287099,1760470232012,-300.0,0.00019379,2]
[391287100,1760470232021,-300.0,0.00019379,2]
[391287101,1760470232032,-300.0,0.00019379,2]
[391287102,1760470232043,-300.0,0.00019379,2]
[391287103,1760470232051,-300.0,0.00019379,2]
[391287104,1760470232060,-300.0,0.00019379,2]
[391287105,1760470232069,-300.0,0.00019379,2]
[391287106,1760470232078,-300.0,0.00019379,2]
[391287107,1760470232087,-300.0,0.00019379,2]
[391287108,1760470232096,-300.0,0.00019379,2]
[391287109,1760470232105,-300.0,0.00019379,2]
[391287110,1760470232114,-300.0,0.00019379,2]
[391287112,1760470232123,-300.0,0.00019379,2]
[391287114,1760470232133,-300.0,0.00019379,2]
[391287116,1760470232142,-300.0,0.00019379,2]
[391287117,1760470232151,-150.0,0.00019482,2]
[391287119,1760470232159,-172.5,0.000196,2]
[391287120,1760470232168,-30000.03,0.0002,2]
[391287122,1760470232177,-565.734918,0.00020187,2]
[391287124,1760470232186,-195.0,0.000202,2]
[391287126,1760470232195,-150.0,0.0002041,2]
[391287128,1760470232205,-217.5,0.000208,2]
[391287129,1760470232214,-166.21043167,0.00021205,2]
[391287131,1760470232224,-180.68,0.00021305,2]
[391287133,1760470232234,-8.10334268,0.000214,2]
[391287135,1760470232274,-210.31421236,0.000214,2]
[391287136,1760470232283,-600.0,0.00021707,20]
[391287138,1760470232292,-627.78,0.00021717,10]
[391287139,1760470232302,-920.2,0.00021717,10]
[391287141,1760470232311,-500.0,0.00021727,2]
[391287143,1760470232323,-500.0,0.00021727,2]
[391287144,1760470232336,-500.0,0.00021727,2]
[391287146,1760470232347,-500.0,0.00021727,2]
[391287148,1760470232357,-500.0,0.00021727,2]
[391287150,1760470232367,-500.0,0.00021727,2]
[391287152,1760470232379,-500.0,0.00021727,2]
[391287154,1760470232389,-500.0,0.00021727,2]
[391287156,1760470232398,-493.66339788,0.00021727,2]
[391287158,1760470232408,-500.0,0.00021727,2]
[391287160,1760470232419,-500.0,0.00021727,2]
[391287162,1760470232429,-500.0,0.00021727,2]
[391287164,1760470232439,-500.0,0.00021727,2]
[391287166,1760470232449,-500.0,0.00021727,2]
[391287168,1760470232461,-500.0,0.00021727,2]
[391287170,1760470232470,-500.0,0.00021727,2]
[391287172,1760470232480,-200.49113119,0.00021727,2]
[391287174,1760470232489,-500.0,0.00021727,2]
[391287176,1760470232499,-566.89046247,0.00021727,2]
[391287178,1760470232509,-500.0,0.00021727,2]
[391287180,1760470232518,-500.0,0.00021727,2]
[391287181,1760470232527,-179.3802619,0.00021727,2]
[391287182,1760470232536,-500.0,0.00021727,2]
[391287183,1760470232546,-500.0,0.00021727,2]
[391287184,1760470232555,-500.0,0.00021727,2]
[391287185,1760470232564,-500.0,0.00021727,2]
[391287187,1760470232577,-500.0,0.00021727,2]
[391287188,1760470232586,-164.58281748,0.00021727,2]
[391287189,1760470232595,-500.0,0.00021727,2]
[391287190,1760470232604,-500.0,0.00021727,2]
[391287191,1760470232613,-500.0,0.00021727,2]
[391287192,1760470232622,-583.52793224,0.00021727,2]
[391287193,1760470232632,-277.07371087,0.00021727,2]
[391287194,1760470232641,-151.0,0.0002173,2]
[391287195,1760470232651,-151.0,0.0002173,20]
[391287196,1760470232660,-151.0,0.0002173,20]
[391287197,1760470232670,-151.0,0.0002173,20]
[391287198,1760470232680,-500.0,0.0002173,20]
[391287199,1760470232689,-151.0,0.00021785,20]
[391287200,1760470232698,-151.0,0.00021785,20]
[391287201,1760470232708,-151.0,0.00021785,20]
[391287202,1760470232718,-240.91,0.00022231,2]
[391287203,1760470232727,-166.21043166,0.00022728,2]
[391287204,1760470232736,-164.0,0.00023,7]
[391287205,1760470232746,-19005.34354524,0.00023,2]
[391287206,1760470232758,-917.37382368,0.00023,2]
[391287207,1760470232770,-9041.63461538,0.00023,2]
[391287208,1760470232779,-500.0,0.00023029,2]
[391287209,1760470232788,-500.0,0.00023029,2]
[391287210,1760470232798,-501.29636073,0.00023029,2]
[391287211,1760470232807,-500.0,0.00023078,2]
[391287212,1760470232817,-500.0,0.00023078,2]
[391287213,1760470232833,-500.0,0.00023078,2]
[391287214,1760470232842,-504.1325774,0.00023078,2]
[391287215,1760470232852,-500.0,0.00023078,2]
[391287216,1760470232863,-500.0,0.00023078,2]
[391287217,1760470232871,-500.0,0.00023078,2]
[391287218,1760470232881,-500.0,0.00023078,2]
[391287219,1760470232890,-301.14,0.00023158,2]
[391287220,1760470232899,-1000.0,0.00023626,2]
[391287221,1760470232908,-720.0,0.00023877,20]
[391287222,1760470232917,-361.36,0.00024084,2]
[391287223,1760470232925,-500.0,0.00024164,2]
[391287224,1760470232935,-1500.0,0.00024174,2]
[391287225,1760470232944,-166.21043166,0.00024252,2]
[391287226,1760470232953,-265.11445284,0.00024676,2]
[391287227,1760470232962,-417.15472785,0.00024676,2]
[391287228,1760470232971,-282.38258406,0.000247,2]
[391287229,1760470232981,-175.97057363,0.000247,2]
[391287230,1760470232990,-632.46445449,0.000247,2]
[391287231,1760470232999,-632.74679848,0.000247,2]
[391287232,1760470233009,-263.7831255,0.000247,2]
[391287233,1760470233018,-300.0,0.000247,2]
[391287234,1760470233027,-500.0,0.00024722,2]
[391287235,1760470233038,-151.0,0.00024899,2]
[391287236,1760470233047,-151.0,0.00024899,2]
[391287237,1760470233057,-151.0,0.00024899,2]
[391287238,1760470233067,-151.0,0.00024899,2]
[391287239,1760470233082,-151.0,0.00024899,2]
[391287240,1760470233092,-151.0,0.00024899,2]
[391287241,1760470233101,-151.0,0.00024899,2]
[391287242,1760470233110,-151.0,0.00024899,2]
[391287243,1760470233120,-151.74926015,0.00024899,2]
[391287244,1760470233129,-151.0,0.00024899,2]
[391287245,1760470233139,-151.0,0.00024899,2]
[391287246,1760470233148,-151.0,0.00024899,2]
[391287247,1760470233157,-175.57269617,0.00024899,2]
[391287248,1760470233167,-282.38258406,0.000249,2]
[391287249,1760470233177,-632.46445449,0.000249,2]
[391287250,1760470233187,-632.74679848,0.000249,2]
[391287251,1760470233196,-151.0,0.00024954,2]
[391287252,1760470233206,-151.0,0.00024954,2]
[391287253,1760470233215,-151.0,0.00024954,2]
[391287254,1760470233225,-151.0,0.00024954,2]
[391287255,1760470233234,-151.0,0.00024954,2]
[391287256,1760470233244,-175.613,0.00024962,8]
[391287257,1760470233253,-1074.58603585,0.00025,2]
[391287258,1760470233263,-12683.34282765,0.00025,2]
[391287259,1760470233273,-2647.91986748,0.00025,2]
[391287260,1760470233283,-209.79786682,0.00025,2]
[391287261,1760470233294,-10364.0,0.00025,2]
[391287262,1760470233304,-202.42151386,0.00025,2]
[391287263,1760470233314,-301.999999,0.00025,5]
[391287264,1760470233328,-600.0,0.00025,2]
[391287265,1760470233338,-6838.38547631,0.00025,2]
[391287266,1760470233347,-151.0,0.00025009,2]
[391287267,1760470233357,-151.0,0.00025063,2]
[391287268,1760470233367,-421.59,0.00025114,2]
[391287269,1760470233377,-151.0,0.00025118,2]
[391287270,1760470233387,-245.0,0.00025173,2]
[391287271,1760470233396,-151.0,0.00025192,2]
[391287272,1760470233405,-180.31992171,0.00025192,2]
[391287273,1760470233414,-151.0,0.00025192,2]
[391287274,1760470233424,-151.0,0.00025192,2]
[391287275,1760470233434,-151.0,0.00025192,2]
[391287276,1760470233443,-151.0,0.00025192,2]
[391287277,1760470233454,-151.0,0.00025192,2]
[391287278,1760470233463,-151.0,0.00025192,2]
[391287279,1760470233472,-151.0,0.00025192,2]
[391287280,1760470233481,-151.0,0.00025192,2]
[391287281,1760470233491,-151.0,0.00025192,2]
[391287282,1760470233500,-151.0,0.00025192,2]
[391287283,1760470233509,-282.38258406,0.000252,2]
[391287284,1760470233518,-632.46445449,0.000252,2]
[391287285,1760470233527,-632.74679848,0.000252,2]
[391287287,1760470233536,-151.0,0.00025247,2]
[391287288,1760470233546,-184.78643183,0.00025247,2]
[391287289,1760470233555,-151.0,0.00025247,2]
[391287290,1760470233563,-151.0,0.00025247,2]
[391287291,1760470233576,-151.0,0.00025247,2]
[391287292,1760470233585,-282.38258406,0.000254,2]
[391287293,1760470233594,-632.46445449,0.000254,2]
[391287294,1760470233604,-632.74679848,0.000254,2]
[391287295,1760470233613,-24781.13415404,0.0002569,2]
[391287296,1760470238039,-213.28674613,0.00022999,2]
[391287297,1760470238049,-14529.77805326,0.0002569,2]
[391287298,1760470238058,-282.38258406,0.000257,2]
[391287299,1760470238067,-632.46445449,0.000257,2]
[391287300,1760470238077,-632.74679848,0.000257,2]
[391287301,1760470238086,-15868.23,0.000257,7]
[391287302,1760470238095,-166.21043166,0.00025775,2]
[391287303,1760470238206,-500.0,0.0002596,2]
[391287304,1760470238217,-445.87336141,0.0002596,2]
[391287305,1760470238226,-500.0,0.0002596,2]
[391287306,1760470238236,-40153.58807285,0.00026,30]
[391287307,1760470238245,-4999.0,0.00026027,2]
[391287309,1760470238255,-481.82,0.00026044,2]
[391287311,1760470238264,-864.0,0.00026265,30]
[391287312,1760470238274,-565.734918,0.00026676,2]
[391287313,1760470238284,-542.04,0.00026975,2]
[391287314,1760470238293,-470.09329391,0.00027192,2]
[391287315,1760470238303,-1880.37317565,0.00027192,2]
[391287316,1760470238312,-4230.83964522,0.00027192,2]
[391287317,1760470238321,-7513.97120992,0.00027192,2]
[391287318,1760470238332,-160.0,0.00027275,3]
[391287319,1760470238342,-166.21043166,0.00027298,2]
[391287320,1760470238351,-4999.0,0.00027397,4]
[391287321,1760470238360,-532.33,0.00027397,2]
[391287322,1760470238370,-532.33,0.00027397,2]
[391287323,1760470238383,-532.33,0.00027397,2]
[391287324,1760470238392,-532.33,0.00027397,2]
[391287325,1760470238401,-532.33,0.00027397,2]
[391287326,1760470238411,-532.33,0.00027397,2]
[391287327,1760470238421,-532.33,0.00027397,2]
[391287328,1760470238431,-532.33,0.00027397,2]
[391287329,1760470238440,-532.33,0.00027397,2]
[391287330,1760470238450,-532.33,0.00027397,2]
[391287331,1760470238462,-532.33,0.00027397,2]
[391287332,1760470238471,-532.33,0.00027397,2]
[391287333,1760470238480,-532.33,0.00027397,2]
[391287334,1760470238490,-532.33,0.00027397,2]
[391287335,1760470238499,-532.33,0.00027397,2]
[391287336,1760470238508,-532.33,0.00027397,2]
[391287337,1760470238518,-532.33,0.00027397,2]
[391287338,1760470238527,-532.33,0.00027397,2]
[391287339,1760470238536,-532.33,0.00027397,2]
[391287340,1760470238549,-532.33,0.00027397,2]
[391287341,1760470238559,-532.33,0.00027397,2]
[391287342,1760470238568,-532.33,0.00027397,2]
[391287343,1760470238578,-532.33,0.00027397,2]
[391287344,1760470238587,-532.53,0.00027397,2]
[391287345,1760470238596,-602.27,0.00027905,2]
[391287346,1760470238606,-392.1734423,0.00027939,30]
[391287347,1760470238615,-500.0,0.0002805,5]
[391287348,1760470238624,-5888.0,0.00028352,2]
[391287349,1760470238633,-162.9892445,0.00028388,30]
[391287350,1760470238644,-900.0,0.000285,7]
[391287351,1760470238653,-1146.93005109,0.00028598,5]
[391287352,1760470238662,-39310.9122073,0.00028613,2]
[391287353,1760470238672,-838.97116295,0.00028623,2]
[391287354,1760470238682,-3352.52876716,0.00028623,2]
[391287355,1760470238691,-151.0,0.00028642,2]
[391287356,1760470238700,-151.0,0.00028642,2]
[391287357,1760470238709,-14012.1019607,0.00028642,2]
[391287358,1760470238718,-250.0,0.00028642,2]
[391287359,1760470238727,-151.0,0.00028642,2]
[391287360,1760470238737,-250.0,0.00028642,2]
[391287361,1760470238746,-151.0,0.00028642,2]
[391287362,1760470238756,-250.0,0.00028642,2]
[391287363,1760470238765,-250.0,0.00028642,2]
[391287364,1760470238775,-250.0,0.00028642,2]
[391287365,1760470238784,-250.0,0.00028642,2]
[391287366,1760470238793,-250.0,0.00028642,2]
[391287367,1760470238802,-250.0,0.00028642,2]
[391287368,1760470238812,-250.0,0.00028642,2]
[391287369,1760470238821,-250.0,0.00028642,2]
[391287370,1760470238831,-250.0,0.00028642,2]
[391287371,1760470238840,-250.0,0.00028642,2]
[391287372,1760470238850,-250.0,0.00028642,2]
[391287373,1760470238859,-250.0,0.00028642,2]
[391287374,1760470238868,-250.0,0.00028642,2]
[391287375,1760470238878,-250.0,0.00028642,2]
[391287376,1760470238887,-250.0,0.00028642,2]
[391287377,1760470238896,-15868.23,0.000287,7]
[391287378,1760470238906,-851.0,0.00028724,2]
[391287379,1760470238915,-4999.0,0.00028767,6]
[391287380,1760470238924,-336.573447,0.000288,30]
[391287381,1760470238933,-332.511358,0.000288,30]
[391287382,1760470238943,-166.21043166,0.00028822,2]
[391287383,1760470238952,-1000.0,0.00028891,30]
[391287384,1760470238962,-239.71167396,0.000289,2]
[391287385,1760470238971,-760.30037828,0.0002899,2]
[391287386,1760470238980,-1104.65859027,0.00029,2]
[391287387,1760470238990,-5678.22614478,0.00029,120]
[391287390,1760470239983,-18593.6209342,0.00029,120]
[391287392,1760470239995,-34041.0,0.00029,120]
[391287394,1760470240007,-10792.4843195,0.00029,120]
[391287400,1760470240050,-1751.082702,0.00029,120]
[391287701,1760470246026,-244.49901458,0.00021281,2]
[391287702,1760470246035,-174.09894027,0.00021281,2]
[391287703,1760470246044,-175.94754803,0.00021281,2]
[391287704,1760470246053,-7.89724023,0.00021281,2]
[391289006,1760470260041,500.0,0.00030445,60]
[391289034,1760470260302,500.0,0.00030445,60]
[391289059,1760470260552,500.0,0.00030445,60]
[391289086,1760470260805,500.0,0.00030445,60]
[391289112,1760470261050,500.0,0.00030445,60]
[391289157,1760470261485,500.0,0.00030445,60]
[391289187,1760470261769,500.0,0.00030445,60]
[391289208,1760470262065,500.0,0.00030445,60]
[391289237,1760470262342,500.0,0.00030445,60]
[391289309,1760470262992,500.0,0.00030445,60]
[391289374,1760470263591,500.0,0.00030445,60]
[391289404,1760470263862,500.0,0.00030445,60]
[391289431,1760470264103,500.0,0.00030445,60]
[391289457,1760470264340,500.0,0.00030445,60]
[391289483,1760470264584,500.0,0.00030445,60]